bitfinex/quotes_BTCUSD_20240717
["timestamp","ask_amount","ask_price","bid_price","bid_amount"]
[1721228283061,0.00837,65093.0,65092.0,1.22978074]
[1721228283265,0.00837,65093.0,65092.0,0.58843573]
[1721228283889,0.00837,65093.0,65092.0,1.05007447]
[1721228284299,0.00837,65093.0,65092.0,1.36333147]
[1721228284501,0.00837,65093.0,65092.0,1.50983147]
[1721228284910,0.00837,65093.0,65092.0,1.50982825]
[1721228285490,0.00837,65093.0,65092.0,1.81708525]
[1721228285912,0.00084,65101.0,65097.0,0.2]
[1721228286109,0.00084,65101.0,65100.0,1.95536674]
[1721228286309,0.00084,65101.0,65100.0,2.41313325]
[1721228287111,0.00084,65101.0,65100.0,2.10591425]
[1721228287306,0.00084,65101.0,65100.0,2.05591425]
[1721228287930,0.00084,65101.0,65100.0,2.05588431]
[1721228288283,0.00084,65101.0,65100.0,2.03288431]
[1721228288597,0.00084,65101.0,65100.0,2.08288431]
[1721228288801,0.00084,65101.0,65100.0,2.08388431]
[1721228289038,0.00084,65101.0,65100.0,2.06088431]
[1721228289637,0.00084,65101.0,65100.0,1.75366531]
[1721228289839,0.00084,65101.0,65100.0,1.17512874]
[1721228290058,0.00084,65101.0,65100.0,1.48234774]
[1721228290280,0.00084,65101.0,65100.0,1.51034774]
[1721228290481,0.00084,65101.0,65100.0,1.46834774]
[1721228290838,0.00084,65101.0,65100.0,1.49634774]
[1721228291335,0.07644,65101.0,65100.0,0.028]
[1721228291550,0.602561,65101.0,65100.0,0.042]
[1721228292386,0.909775,65101.0,65100.0,0.028]
[1721228292590,0.14174,65101.0,65100.0,0.028]
[1721228292806,0.14174,65101.0,65100.0,0.0461615]
[1721228293200,0.295347,65101.0,65100.0,0.0461615]
[1721228293414,0.14174,65101.0,65100.0,0.0461615]
[1721228294197,0.14174,65101.0,65100.0,0.0251615]
[1721228294376,0.14174,65101.0,65100.0,0.0181615]
[1721228295340,0.14174,65101.0,65092.0,0.307255]
[1721228295563,0.14174,65101.0,65100.0,0.003]
[1721228295564,0.295347,65101.0,65100.0,0.003]
[1721228295771,0.602561,65101.0,65100.0,0.008]
[1721228295977,0.14174,65101.0,65100.0,0.008]
[1721228296334,0.14174,65101.0,65100.0,0.003]
[1721228296540,0.00084,65101.0,65100.0,0.66459444]
[1721228296798,0.00084,65101.0,65100.0,1.50373244]
[1721228296980,0.00084,65101.0,65100.0,1.50073244]
[1721228297338,0.00084,65101.0,65100.0,0.97181344]
[1721228297543,0.00084,65101.0,65100.0,0.0493847]
[1721228297815,0.1382,65096.0,65081.0,0.2247]
[1721228298026,0.1382,65096.0,65091.0,0.15363]
[1721228298168,0.1382,65096.0,65092.0,0.00266905]
[1721228298514,0.1382,65096.0,65093.0,0.153625]
[1721228298936,0.1382,65096.0,65071.0,0.00266905]
[1721228298937,0.1382,65096.0,65079.0,0.1422]
[1721228299144,0.1382,65096.0,65091.0,0.153629]
[1721228299345,0.1382,65096.0,65092.0,0.00266905]
[1721228299547,0.1382,65096.0,65086.0,0.307284]
[1721228299548,0.153627,65093.0,65086.0,0.307284]
[1721228299746,0.153624,65094.0,65087.0,0.30994905]
[1721228299949,0.1382,65096.0,65089.0,0.153634]
[1721228299950,0.153622,65095.0,65089.0,0.153634]
[1721228300067,0.153631,65091.0,65090.0,0.00266905]
[1721228300269,0.307243,65095.0,65086.0,0.153642]
[1721228300270,0.307243,65095.0,65087.0,0.00266905]
[1721228300500,0.1382,65096.0,65087.0,0.00266905]
[1721228300501,0.153625,65094.0,65087.0,0.00266905]
[1721228300730,0.153622,65095.0,65092.0,0.002]
[1721228300933,0.153622,65095.0,65089.0,0.153634]
[1721228301192,0.153622,65095.0,65090.0,0.0460915]
[1721228301380,0.29182,65096.0,65090.0,0.0500915]
[1721228301558,0.29182,65096.0,65091.0,0.00266905]
[1721228301974,0.153623,65095.0,65091.0,0.00266905]
[1721228302176,0.153624,65094.0,65091.0,0.00266905]
[1721228302392,0.153628,65092.0,65091.0,0.00266905]
[1721228302590,0.153631,65091.0,65085.0,0.153644]
[1721228302764,0.0777,65096.0,65086.0,0.00266905]
[1721228303117,0.0634,65083.0,65082.0,0.00266905]
[1721228303335,0.0634,65083.0,65076.0,0.307328]
[1721228303336,0.0634,65083.0,65081.0,0.153654]
[1721228303527,0.0634,65083.0,65082.0,0.01563231]
[1721228303701,0.0634,65083.0,65078.0,0.307321]
[1721228303911,0.0634,65083.0,65080.0,0.307311]
[1721228304105,0.0634,65083.0,65081.0,0.00266905]
[1721228304563,0.217049,65083.0,65082.0,0.014]
[1721228304910,0.524348,65083.0,65082.0,0.014]
[1721228305294,0.0634,65083.0,65082.0,0.014]
[1721228305724,0.0634,65083.0,65079.0,0.153659]
[1721228305935,0.0634,65083.0,65080.0,0.06276815]
[1721228306134,0.0634,65083.0,65080.0,0.0600991]
[1721228306698,0.0634,65083.0,65080.0,0.2137551]
[1721228307281,0.0634,65083.0,65080.0,0.1997551]
[1721228307954,0.0634,65083.0,65082.0,0.014924]
[1721228308203,0.0634,65083.0,65082.0,0.05312401]
[1721228308548,0.153641,65087.0,65083.0,0.00266905]
[1721228308772,0.0634,65088.0,65083.0,0.00266905]
[1721228308957,0.0634,65088.0,65082.0,0.05312401]
[1721228309107,0.307287,65086.0,65083.0,0.00266905]
[1721228309305,0.153645,65085.0,65084.0,0.01088922]
[1721228309529,0.460935,65085.0,65084.0,0.01088922]
[1721228309937,0.153649,65084.0,65082.0,0.007924]
[1721228310888,0.0634,65088.0,65082.0,0.007924]
[1721228311039,0.0634,65088.0,65083.0,0.307295]
[1721228311240,0.0614,65094.0,65092.0,0.153628]
[1721228311452,0.08124,65096.0,65082.0,0.314624]
[1721228311453,0.00084,65096.0,65095.0,0.768107]
[1721228311824,0.00084,65096.0,65095.0,1.61931946]
[1721228312000,0.00084,65096.0,65095.0,1.97656246]
[1721228312210,0.00084,65096.0,65095.0,2.10410447]
[1721228312462,0.00084,65096.0,65095.0,2.1040949]
[1721228312665,0.00084,65101.0,65100.0,1.509685]
[1721228312875,0.00084,65101.0,65100.0,1.83769828]
[1721228313091,0.00084,65101.0,65100.0,1.78769828]
[1721228314996,0.00084,65101.0,65100.0,1.80169828]
[1721228315423,0.00084,65101.0,65100.0,1.66016584]
[1721228315653,0.00084,65101.0,65100.0,1.83769203]
[1721228315825,0.00084,65101.0,65100.0,2.14019203]
[1721228316268,0.00084,65101.0,65100.0,2.15419203]
[1721228317592,0.00084,65101.0,65100.0,2.46141103]
[1721228317722,0.00837,65111.0,65100.0,2.46141103]
[1721228317723,0.00837,65111.0,65110.0,0.84883]
[1721228317906,0.00837,65111.0,65110.0,1.86937146]
[1721228318109,0.00837,65111.0,65110.0,2.46815174]
[1721228318311,0.00837,65111.0,65110.0,2.34064346]
[1721228318575,0.00837,65111.0,65110.0,2.46814873]
[1721228318969,0.00837,65111.0,65110.0,2.41814873]
[1721228319527,0.00837,65111.0,65110.0,2.46814873]
[1721228319894,0.00837,65111.0,65110.0,2.48214873]
[1721228320548,0.00837,65117.0,65116.0,1.432148]
[1721228320751,0.00835,65121.0,65120.0,0.710687]
[1721228320987,0.00835,65121.0,65120.0,1.11557401]
[1721228321219,0.00835,65121.0,65120.0,2.03694901]
[1721228321430,0.00835,65121.0,65120.0,1.90944374]
[1721228321640,0.00835,65121.0,65120.0,2.48664469]
[1721228321832,0.00836,65126.0,65124.0,0.346153]
[1721228322069,0.00836,65126.0,65124.0,1.02214674]
[1721228322288,0.00836,65126.0,65124.0,1.33192179]
[1721228322525,0.00836,65126.0,65124.0,1.02214674]
[1721228322766,0.00836,65126.0,65124.0,0.15438174]
[1721228323018,0.14937,65125.0,65124.0,0.0460991]
[1721228323187,0.14937,65125.0,65124.0,0.0600991]
[1721228323403,0.15609736,65125.0,65124.0,0.0600991]
[1721228323603,0.14937,65125.0,65124.0,0.0600991]
[1721228324063,0.14937,65125.0,65124.0,0.014]
[1721228324474,0.00837,65125.0,65124.0,0.93614674]
[1721228324682,0.00837,65125.0,65124.0,1.46795274]
[1721228325296,0.00837,65125.0,65124.0,1.77505874]
[1721228325837,0.00837,65125.0,65124.0,1.76105874]
[1721228326219,0.00837,65125.0,65124.0,2.47505874]
[1721228326418,0.00837,65125.0,65124.0,2.46105874]
[1721228326644,0.00837,65125.0,65124.0,2.15395274]
[1721228326846,0.00837,65125.0,65124.0,2.16395274]
[1721228328065,0.00837,65125.0,65124.0,2.15395274]
[1721228328467,0.00837,65125.0,65124.0,2.16095274]
[1721228328981,0.00837,65125.0,65124.0,2.15395274]
[1721228329201,0.00837,65125.0,65124.0,1.45395274]
[1721228329406,0.00837,65125.0,65124.0,1.46795274]
[1721228329702,0.00837,65125.0,65124.0,1.48195274]
[1721228329892,0.00837,65125.0,65124.0,1.45395274]
[1721228330430,0.00837,65125.0,65124.0,1.46695274]
[1721228330637,0.00837,65125.0,65124.0,1.45395274]
[1721228330853,0.00837,65125.0,65124.0,2.16795274]
[1721228332002,0.00837,65125.0,65124.0,2.18195274]
[1721228332229,0.00837,65125.0,65124.0,1.48195274]
[1721228332988,0.00837,65125.0,65124.0,0.93614674]
[1721228333226,0.14897,65125.0,65124.0,0.014]
[1721228333575,0.15587457,65125.0,65124.0,0.014]
[1721228333775,0.01527457,65125.0,65124.0,0.69213195]
[1721228333978,0.01527457,65125.0,65124.0,0.70613195]
[1721228334179,0.00837,65125.0,65124.0,0.24547295]
[1721228334386,0.01524415,65125.0,65124.0,0.18238174]
[1721228334782,0.01524415,65125.0,65124.0,0.19138174]
[1721228334963,0.01524415,65125.0,65124.0,0.65204074]
[1721228335366,0.00837,65125.0,65124.0,0.95914674]
[1721228335566,0.00837,65125.0,65124.0,0.65204074]
[1721228335978,0.00837,65125.0,65124.0,1.05506181]
[1721228336314,0.00837,65125.0,65124.0,1.27976181]
[1721228336630,0.00837,65125.0,65124.0,1.57286781]
[1721228337027,0.00837,65125.0,65124.0,1.58586781]
[1721228337948,0.00837,65125.0,65124.0,1.56286781]
[1721228338148,0.00837,65125.0,65124.0,1.58523781]
[1721228338589,0.00837,65125.0,65124.0,0.17675174]
[1721228338934,0.00837,65125.0,65124.0,0.16838174]
[1721228339126,0.00837,65125.0,65124.0,0.32193474]
[1721228339752,0.01527562,65125.0,65124.0,0.32193474]
[1721228339944,0.01527562,65125.0,65124.0,0.30793474]
[1721228340206,0.01527562,65125.0,65124.0,0.21672441]
[1721228340402,0.01527562,65125.0,65124.0,0.16838174]
[1721228340403,0.15897562,65125.0,65124.0,0.16838174]
[1721228340648,0.15897562,65125.0,65124.0,0.32193474]
[1721228341024,0.15897562,65125.0,65124.0,0.33593474]
[1721228341623,0.15897562,65125.0,65124.0,0.62904074]
[1721228341824,0.07917562,65125.0,65124.0,0.73165601]
[1721228342025,0.07227,65125.0,65124.0,0.73165601]
[1721228342335,0.07227,65125.0,65124.0,0.73256901]
[1721228342667,0.07227,65125.0,65124.0,0.74556901]
[1721228343968,0.00837,65125.0,65124.0,0.74556901]
[1721228344176,0.01527428,65125.0,65124.0,0.74556901]
[1721228345049,0.00837,65125.0,65124.0,0.74556901]
[1721228345459,0.00837,65125.0,65124.0,1.05267501]
[1721228345660,0.01527562,65125.0,65124.0,1.18017444]
[1721228345860,0.00837,65125.0,65124.0,1.18017444]
[1721228346074,0.00837,65125.0,65124.0,1.05267501]
[1721228346640,0.00837,65125.0,65124.0,1.4872814]
[1721228347857,0.00837,65125.0,65124.0,1.7119814]
[1721228348574,0.00837,65125.0,65124.0,1.7119731]
[1721228350006,0.00837,65125.0,65124.0,2.0190791]
[1721228350996,0.00837,65125.0,65124.0,2.4119731]
[1721228351439,0.00837,65125.0,65124.0,1.01878683]
[1721228351635,0.00837,65125.0,65124.0,1.47944583]
[1721228351884,0.00837,65125.0,65124.0,2.01125183]
[1721228352096,0.00837,65125.0,65124.0,2.01124335]
[1721228352344,0.00837,65125.0,65124.0,2.31834935]
[1721228353393,0.00837,65125.0,65124.0,1.78654335]
[1721228353596,0.00837,65125.0,65124.0,1.38874335]
[1721228353783,0.00837,65125.0,65124.0,1.69584935]
[1721228354248,0.00837,65125.0,65124.0,1.74584935]
[1721228354461,0.00837,65125.0,65124.0,1.69584935]
[1721228354681,0.00837,65125.0,65124.0,1.56836574]
[1721228354883,0.00837,65125.0,65124.0,1.69584796]
[1721228355090,0.00837,65125.0,65124.0,2.76825396]
[1721228355417,0.00837,65125.0,65124.0,2.46114796]
[1721228356211,0.00837,65125.0,65124.0,2.46115027]
[1721228357392,0.00837,65125.0,65124.0,2.76825627]
[1721228357595,0.00837,65125.0,65124.0,2.81825627]
[1721228357703,0.00837,65125.0,65124.0,2.81824615]
[1721228357914,0.00835,65129.0,65128.0,0.25]
[1721228358120,0.00835,65137.0,65136.0,0.660573]
[1721228358326,0.00835,65137.0,65136.0,1.16712915]
[1721228358557,0.00835,65137.0,65136.0,2.28277615]
[1721228358761,0.00835,65137.0,65136.0,2.58982515]
[1721228358958,0.00835,65137.0,65136.0,2.71282515]
[1721228359203,0.00835,65137.0,65136.0,3.41282515]
[1721228359407,0.00835,65141.0,65140.0,0.203515]
[1721228359662,0.00837,65143.0,65142.0,0.20351]
[1721228359913,0.00837,65143.0,65142.0,2.45424035]
[1721228360115,0.00837,65143.0,65142.0,3.21924035]
[1721228360463,0.00835,65148.0,65147.0,1.631491]
[1721228360674,0.00835,65151.0,65150.0,0.510474]
[1721228360888,0.00835,65151.0,65150.0,1.32395351]
[1721228361092,0.00835,65151.0,65150.0,2.58791951]
[1721228361322,0.00835,65151.0,65150.0,2.58792389]
[1721228361523,0.00835,65151.0,65150.0,2.28094089]
[1721228362578,0.00835,65151.0,65150.0,2.28095322]
[1721228363344,0.00835,65151.0,65150.0,1.86053874]
[1721228363563,0.00835,65151.0,65150.0,1.98796969]
[1721228363794,0.00775,65151.0,65150.0,2.29495269]
[1721228363996,0.00775,65151.0,65150.0,2.29495384]
[1721228364423,0.00765,65151.0,65150.0,2.29495384]
[1721228364627,0.00705,65151.0,65150.0,2.30895384]
[1721228365065,0.00705,65151.0,65150.0,2.76013684]
[1721228365260,0.00695,65151.0,65150.0,2.76013684]
[1721228365513,0.00675,65151.0,65150.0,2.81013684]
[1721228365741,0.00655,65151.0,65150.0,2.81013684]
[1721228366183,0.00635,65151.0,65150.0,2.81013684]
[1721228366379,0.00635,65151.0,65150.0,2.79613684]
[1721228366584,0.00635,65151.0,65150.0,2.73213684]
[1721228366786,0.00635,65151.0,65150.0,2.74613684]
[1721228366946,0.00635,65151.0,65150.0,2.79613684]
[1721228367154,0.00635,65151.0,65150.0,2.79612807]
[1721228367587,0.00635,65151.0,65150.0,2.78212807]
[1721228368781,0.00635,65151.0,65150.0,2.74612807]
[1721228368998,0.00635,65151.0,65150.0,2.61870474]
[1721228368999,0.00625,65151.0,65150.0,2.61870474]
[1721228369200,0.00625,65151.0,65150.0,2.29494616]
[1721228369379,0.00625,65151.0,65150.0,2.18152174]
[1721228369708,0.00625,65151.0,65150.0,2.16752174]
[1721228370262,0.00625,65151.0,65150.0,2.18152174]
[1721228370430,0.00625,65151.0,65150.0,2.16752174]
[1721228371403,0.00625,65151.0,65150.0,1.90800374]
[1721228371624,0.00625,65151.0,65150.0,1.92200374]
[1721228371825,0.00625,65151.0,65150.0,1.86053874]
[1721228372027,0.15425,65151.0,65150.0,0.94983874]
[1721228372229,0.15425,65151.0,65150.0,0.32187274]
[1721228372472,0.15425,65151.0,65150.0,0.15438174]
[1721228372672,0.0632,65150.0,65140.0,0.307026]
[1721228372847,0.0632,65150.0,65141.0,0.15705079]
[1721228373047,0.00708712,65149.0,65144.0,0.153504]
[1721228373259,0.00708712,65149.0,65145.0,0.15705079]
[1721228374131,0.063,65147.0,65145.0,0.15705079]
[1721228374332,0.153506,65144.0,65138.0,0.153519]
[1721228374560,0.063,65143.0,65140.0,0.15618305]
[1721228374760,0.07008946,65143.0,65140.0,0.31056479]
[1721228375760,0.07008946,65143.0,65141.0,0.153512]
[1721228375963,0.07008946,65143.0,65142.0,0.61491274]
[1721228376169,0.00708946,65143.0,65142.0,0.61491274]
[1721228376366,0.0634,65148.0,65147.0,0.767495]
[1721228376543,0.0634,65148.0,65142.0,0.19938966]
[1721228376544,0.1462,65148.0,65142.0,0.04500792]
[1721228376744,0.0634,65146.0,65141.0,0.00266905]
[1721228376972,0.153506,65144.0,65141.0,0.00266905]
[1721228377347,0.00707353,65143.0,65142.0,0.01]
[1721228377634,0.92101353,65143.0,65142.0,0.01]
[1721228377967,0.61399753,65143.0,65142.0,0.01]
[1721228378767,0.30698153,65143.0,65142.0,0.01]
[1721228379029,0.30698153,65143.0,65142.0,0.02761911]
[1721228379030,0.15347353,65143.0,65142.0,0.02761911]
[1721228379231,0.15347353,65143.0,65142.0,0.03761911]
[1721228379605,0.15347353,65143.0,65142.0,0.02761911]
[1721228380226,0.30698153,65143.0,65142.0,0.01]
[1721228380607,0.30698153,65143.0,65142.0,0.015]
[1721228380807,0.15347353,65143.0,65142.0,0.015]
[1721228381039,0.30698153,65143.0,65142.0,0.015]
[1721228381395,0.61399753,65143.0,65142.0,0.015]
[1721228381597,1.22802953,65143.0,65142.0,0.015]
[1721228382809,1.22802953,65143.0,65142.0,0.005]
[1721228382989,1.22802953,65143.0,65142.0,0.008]
[1721228383754,1.53504553,65143.0,65142.0,0.003]
[1721228384169,1.63504553,65143.0,65142.0,0.003]
[1721228384540,1.63504553,65143.0,65142.0,0.004]
[1721228384904,1.63504553,65143.0,65142.0,0.003]
[1721228385318,1.63504553,65143.0,65142.0,0.004]
[1721228385920,1.32802953,65143.0,65142.0,0.004]
[1721228386331,1.02101353,65143.0,65142.0,0.001]
[1721228386920,1.02301353,65143.0,65142.0,0.001]
[1721228387045,0.153522,65138.0,65133.0,0.00266905]
[1721228387251,0.153523,65137.0,65134.0,0.04632771]
[1721228387454,0.16045744,65137.0,65134.0,0.04632771]
[1721228388659,0.16045744,65137.0,65135.0,0.00266905]
[1721228388855,0.16045744,65137.0,65134.0,0.04632771]
[1721228389056,0.153531,65134.0,65129.0,0.15354]
[1721228389256,0.0614,65136.0,65130.0,0.00266905]
[1721228389257,0.153536,65131.0,65130.0,0.00266905]
[1721228389582,0.153536,65131.0,65124.0,0.000913]
[1721228389583,0.153542,65129.0,65125.0,0.00266905]
[1721228389783,0.00693444,65128.0,65125.0,0.00266905]
[1721228390376,0.00693444,65128.0,65124.0,0.154465]
[1721228390377,0.0647,65127.0,65124.0,0.154465]
[1721228390580,0.00687148,65126.0,65125.0,0.0768701]
[1721228391249,0.54971648,65126.0,65125.0,0.009]
[1721228391447,0.54971648,65126.0,65124.0,0.000913]
[1721228391448,0.15355,65125.0,65124.0,0.000913]
[1721228391700,0.1603983,65125.0,65124.0,0.000913]
[1721228391872,0.4674993,65125.0,65124.0,0.009913]
[1721228392384,0.4674993,65125.0,65124.0,0.023913]
[1721228392582,0.7746003,65125.0,65124.0,0.023913]
[1721228393368,1.0817013,65125.0,65124.0,0.023913]
[1721228394028,1.0817013,65125.0,65124.0,0.014913]
[1721228394433,0.7746003,65125.0,65124.0,0.015913]
[1721228394625,0.7746003,65125.0,65124.0,0.001913]
[1721228396276,0.7746003,65125.0,65124.0,0.006913]
[1721228398132,0.767752,65125.0,65124.0,0.006913]
[1721228398674,0.77450637,65125.0,65124.0,0.006913]
[1721228399853,0.46740537,65125.0,65124.0,0.006913]
[1721228400458,0.85250637,65125.0,65124.0,0.006913]
[1721228400864,1.22500737,65125.0,65124.0,0.006913]
[1721228401070,1.47938911,65125.0,65124.0,0.006913]
[1721228401267,1.32500737,65125.0,65124.0,0.006913]
[1721228402202,1.32500737,65125.0,65124.0,0.005913]
[1721228402615,1.32500737,65125.0,65124.0,0.006913]
[1721228402616,0.91790637,65125.0,65124.0,0.006913]
[1721228403053,0.91790637,65125.0,65124.0,0.000913]
[1721228403054,1.37938911,65125.0,65124.0,0.000913]
[1721228403456,1.47938911,65125.0,65124.0,0.000913]
[1721228403659,1.32700737,65125.0,65124.0,0.001913]
[1721228404305,1.32700737,65125.0,65124.0,0.000913]
[1721228404306,1.47938911,65125.0,65124.0,0.000913]
[1721228404469,1.55238911,65125.0,65124.0,0.000913]
[1721228404669,1.50438911,65125.0,65124.0,0.001913]
[1721228404867,1.86149011,65125.0,65124.0,0.002913]
[1721228405068,1.96583968,65125.0,65124.0,0.002913]
[1721228405277,1.81149011,65125.0,65124.0,0.002913]
[1721228405475,1.81149011,65125.0,65124.0,0.001913]
[1721228405754,1.50438911,65125.0,65124.0,0.001913]
[1721228406134,1.48138911,65125.0,65124.0,0.001913]
[1721228406441,1.01990637,65125.0,65124.0,0.002913]
[1721228407260,1.32700737,65125.0,65124.0,0.002913]
[1721228407472,1.32500737,65125.0,65124.0,0.001913]
[1721228407808,2.43809185,65125.0,65124.0,0.001913]
[1721228408026,2.43809185,65125.0,65092.0,0.153628]
[1721228408027,0.153615,65098.0,65092.0,0.153628]
[1721228408196,0.153615,65098.0,65091.0,0.00266905]
[1721228408197,0.0642,65099.0,65093.0,0.00266905]
[1721228408397,0.0642,65107.0,65094.0,0.15438174]
[1721228408601,0.153603,65103.0,65095.0,0.00266905]
[1721228408803,0.0642,65107.0,65097.0,0.307233]
[1721228409029,0.0642,65107.0,65098.0,0.00266905]
[1721228409228,0.307196,65105.0,65098.0,0.00266905]
[1721228409402,0.153614,65098.0,65097.0,0.00266905]
[1721228409604,0.153615,65098.0,65092.0,0.15629705]
[1721228409824,0.307224,65099.0,65093.0,0.21371221]
[1721228409825,0.153613,65099.0,65093.0,0.21371221]
[1721228410043,0.153613,65099.0,65094.0,0.00266905]
[1721228410659,0.307211,65102.0,65095.0,0.153621]
[1721228410864,0.307211,65102.0,65096.0,0.00266905]
[1721228410865,0.30722,65100.0,65096.0,0.00266905]
[1721228411023,0.30722,65100.0,65093.0,0.06008721]
[1721228411024,0.153612,65099.0,65094.0,0.00266905]
[1721228411234,0.307211,65102.0,65095.0,0.06194961]
[1721228411436,0.0642,65107.0,65100.0,0.153608]
[1721228411649,0.0642,65107.0,65097.0,0.307231]
[1721228411650,0.001,65099.0,65097.0,0.307231]
[1721228411845,0.001,65099.0,65098.0,0.30278305]
[1721228412052,0.001,65099.0,65098.0,0.300114]
[1721228412294,0.001,65099.0,65098.0,0.36020121]
[1721228412506,0.001,65099.0,65095.0,0.15438174]
[1721228412711,0.001,65099.0,65096.0,0.00266905]
[1721228412834,0.001,65098.0,65096.0,0.00266905]
[1721228413042,0.001,65098.0,65097.0,0.153615]
[1721228413284,0.001,65098.0,65096.0,0.153618]
[1721228413485,0.214814,65098.0,65097.0,0.00266905]
[1721228413713,0.214814,65098.0,65094.0,0.005]
[1721228413714,0.540464,65095.0,65094.0,0.005]
[1721228414260,0.460864,65095.0,65094.0,0.005]
[1721228414480,0.153629,65092.0,65087.0,0.153639]
[1721228414682,0.153626,65093.0,65088.0,0.07975816]
[1721228414885,0.367429,65098.0,65088.0,0.07975816]
[1721228414886,0.153633,65090.0,65088.0,0.07975816]
[1721228415090,0.153631,65091.0,65088.0,0.00266905]
[1721228415299,0.153631,65091.0,65086.0,0.00266905]
[1721228416072,0.153631,65091.0,65087.0,0.012]
[1721228416275,0.153631,65091.0,65088.0,0.00266905]
[1721228416616,0.001,65092.0,65091.0,0.215431]
[1721228416791,0.001,65092.0,65091.0,0.63854118]
[1721228417329,0.001,65092.0,65091.0,0.49934118]
[1721228417558,0.001,65092.0,65091.0,0.65372292]
[1721228417761,0.0638,65105.0,65096.0,0.153618]
[1721228418008,0.0638,65105.0,65097.0,0.00266905]
[1721228418009,0.153606,65102.0,65097.0,0.00266905]
[1721228418114,0.153603,65103.0,65097.0,0.20237125]
[1721228419333,0.0638,65105.0,65099.0,0.307224]
[1721228419533,0.0604,65118.0,65103.0,0.1442]
[1721228419739,0.04575363,65122.0,65116.0,0.153569]
[1721228419962,0.153557,65122.0,65116.0,0.153569]
[1721228420161,0.0604,65124.0,65117.0,0.153567]
[1721228420361,0.36202868,65123.0,65116.0,0.0801]
[1721228420567,0.307114,65123.0,65117.0,0.00266905]
[1721228420765,0.0604,65124.0,65113.0,0.00266905]
[1721228420766,0.05491448,65122.0,65113.0,0.00266905]
[1721228420974,0.460745,65112.0,65108.0,0.00266905]
[1721228421173,0.0657,65113.0,65106.0,0.00266905]
[1721228421373,0.0657,65113.0,65104.0,0.15626805]
[1721228421374,0.153586,65110.0,65104.0,0.15626805]
[1721228421750,0.153589,65109.0,65104.0,0.15626805]
[1721228421953,0.153589,65109.0,65104.0,0.153599]
[1721228422154,0.153589,65109.0,65105.0,0.060421]
[1721228423663,0.153589,65109.0,65097.0,0.3533172]
[1721228423664,0.307186,65107.0,65095.0,0.0629]
[1721228423918,0.07717479,65108.0,65097.0,0.153616]
[1721228423919,0.307198,65105.0,65097.0,0.153616]
[1721228424126,0.153605,65102.0,65098.0,0.00266905]
[1721228424280,0.153605,65102.0,65099.0,0.06997068]
[1721228424480,0.153618,65097.0,65089.0,0.389068]
[1721228424704,0.0646,65101.0,65093.0,0.153625]
[1721228425030,0.153621,65095.0,65094.0,0.00266905]
[1721228425236,0.46084,65099.0,65093.0,0.153625]
[1721228425437,0.38440479,65098.0,65086.0,0.0646]
[1721228425662,0.153629,65092.0,65087.0,0.00266905]
[1721228426072,0.0646,65101.0,65087.0,0.00266905]
[1721228426073,0.07717479,65094.0,65087.0,0.00266905]
[1721228426268,0.07717479,65094.0,65081.0,0.064]
[1721228426269,0.153638,65088.0,65086.0,0.00266905]
[1721228426500,0.1373,65093.0,65083.0,0.00266905]
[1721228426627,0.153641,65087.0,65083.0,0.04838046]
[1721228429593,0.153641,65087.0,65083.0,0.00266905]
[1721228430791,0.153641,65087.0,65083.0,0.00766905]
[1721228430991,0.30727,65090.0,65083.0,0.16131805]
[1721228430992,0.153638,65088.0,65083.0,0.16131805]
[1721228431197,0.15364,65087.0,65083.0,0.00766905]
[1721228431417,0.153644,65086.0,65083.0,0.00766905]
[1721228431617,0.15364,65088.0,65083.0,0.00766905]
[1721228431794,0.15364,65088.0,65083.0,0.09997666]
[1721228431995,0.15364,65088.0,65083.0,0.09897666]
[1721228432239,0.153635,65090.0,65083.0,0.25262466]
[1721228432440,0.153624,65094.0,65084.0,0.15438174]
[1721228432770,0.153624,65094.0,65090.0,0.00266905]
[1721228432974,0.153624,65094.0,65091.0,0.02972921]
[1721228433185,0.307231,65098.0,65091.0,0.02972921]
[1721228433405,0.0629,65100.0,65095.0,0.153619]
[1721228433572,0.230105,65102.0,65095.0,0.30724]
[1721228433573,0.0765,65102.0,65095.0,0.30724]
[1721228433812,0.153592,65108.0,65102.0,0.153604]
[1721228434002,0.43589778,65110.0,65103.0,0.0460825]
[1721228434003,0.153593,65107.0,65103.0,0.0460825]
[1721228434249,0.390076,65110.0,65103.0,0.0460825]
[1721228434250,0.153595,65106.0,65104.0,0.00266905]
[1721228434442,0.307152,65115.0,65104.0,0.00266905]
[1721228434443,0.04584903,65113.0,65105.0,0.1409]
[1721228434615,0.05502014,65112.0,65111.0,0.153583]
[1721228434815,0.05502014,65112.0,65106.0,0.15438174]
[1721228435150,0.09169807,65118.0,65102.0,0.153604]
[1721228435151,0.307176,65110.0,65102.0,0.153604]
[1721228435320,0.307176,65110.0,65100.0,0.078]
[1721228435321,0.307176,65110.0,65104.0,0.00266905]
[1721228435524,0.153588,65109.0,65103.0,0.1996845]
[1721228435901,0.04586402,65112.0,65104.0,0.00266905]
[1721228436098,0.19268464,65111.0,65104.0,0.00266905]
[1721228436300,0.19268464,65111.0,65104.0,0.153599]
[1721228436301,0.20797164,65110.0,65104.0,0.153599]
[1721228436482,0.153589,65109.0,65105.0,0.00266905]
[1721228437322,0.04587695,65110.0,65109.0,0.153588]
[1721228437522,0.10073182,65111.0,65110.0,0.153586]
[1721228437861,0.05485485,65111.0,65110.0,0.153586]
[1721228438298,0.1007318,65111.0,65110.0,0.153586]
[1721228438627,0.1007318,65111.0,65110.0,0.24463541]
[1721228439128,0.1007318,65111.0,65110.0,0.09104941]
[1721228439315,0.05485485,65111.0,65109.0,0.15438174]
[1721228439669,0.04590806,65110.0,65109.0,0.61514674]
[1721228439870,0.10137974,65110.0,65109.0,0.61514674]
[1721228440026,0.04590805,65112.0,65110.0,0.614344]
[1721228440228,0.06886207,65113.0,65112.0,0.460744]
[1721228440499,0.05552798,65113.0,65112.0,0.460744]
[1721228440876,0.10144119,65113.0,65112.0,0.460744]
[1721228441072,0.05552798,65113.0,65112.0,0.153581]
[1721228441274,0.12439005,65113.0,65112.0,0.460744]
[1721228441732,0.12439005,65113.0,65112.0,0.153581]